[Event "Late-Titled-Tuesday-Blitz-April-23-2024"]
[Site "Chess.com"]
[Date "2024.04.23"]
[Round "9"]
[White "Fh2411"]
[Black "super_emi_26"]
[Result "0-1"]
[WhiteElo "2550"]
[BlackElo "2706"]
[TimeControl "180+1"]
[EndTime "15:48:33 PDT"]
[Termination "super_emi_26 won on time"]

1. d4 {[%clk 0:03:00.1]} 1... g6 {[%clk 0:02:54.5]} 2. Nf3 {[%clk 0:02:59.4]}
2... Bg7 {[%clk 0:02:55.1]} 3. Bf4 {[%clk 0:02:57.7]} 3... Nf6 {[%clk
0:02:38.5]} 4. e3 {[%clk 0:02:57.3]} 4... O-O {[%clk 0:02:35.1]} 5. h3 {[%clk
0:02:57.7]} 5... b6 {[%clk 0:02:35.5]} 6. Nbd2 {[%clk 0:02:54.4]} 6... Bb7
{[%clk 0:02:35]} 7. Be2 {[%clk 0:02:54.8]} 7... d6 {[%clk 0:02:35.2]} 8. O-O
{[%clk 0:02:55.4]} 8... Nbd7 {[%clk 0:02:35.8]} 9. a4 {[%clk 0:02:53.5]} 9... a6
{[%clk 0:02:35.8]} 10. Bh2 {[%clk 0:02:47.8]} 10... Ne4 {[%clk 0:02:33.4]} 11.
Nxe4 {[%clk 0:02:46.2]} 11... Bxe4 {[%clk 0:02:34.3]} 12. Nd2 {[%clk 0:02:47]}
12... Bb7 {[%clk 0:02:34.9]} 13. Bf3 {[%clk 0:02:46.5]} 13... Qc8 {[%clk
0:02:35.5]} 14. c3 {[%clk 0:02:44.6]} 14... c5 {[%clk 0:02:35.1]} 15. Re1 {[%clk
0:02:40.4]} 15... Qc7 {[%clk 0:02:35.1]} 16. Bg3 {[%clk 0:02:35.3]} 16... Rfc8
{[%clk 0:02:32.5]} 17. Qe2 {[%clk 0:02:35.1]} 17... Rab8 {[%clk 0:02:32]} 18.
Bxb7 {[%clk 0:02:24.1]} 18... Qxb7 {[%clk 0:02:32.9]} 19. Nf3 {[%clk 0:02:24.8]}
19... b5 {[%clk 0:02:31.6]} 20. axb5 {[%clk 0:02:24.9]} 20... axb5 {[%clk
0:02:32.5]} 21. e4 {[%clk 0:02:25.3]} 21... b4 {[%clk 0:02:31.2]} 22. e5 {[%clk
0:02:21.2]} 22... bxc3 {[%clk 0:02:31.6]} 23. bxc3 {[%clk 0:02:22.1]} 23... cxd4
{[%clk 0:02:29.5]} 24. cxd4 {[%clk 0:02:23]} 24... dxe5 {[%clk 0:02:23.2]} 25.
dxe5 {[%clk 0:02:17.4]} 25... e6 {[%clk 0:02:22.9]} 26. Rad1 {[%clk 0:02:13.5]}
26... Nb6 {[%clk 0:02:22.9]} 27. Rb1 {[%clk 0:01:48.3]} 27... Qd7 {[%clk
0:02:14.8]} 28. Ng5 {[%clk 0:01:44]} 28... Nd5 {[%clk 0:02:12.9]} 29. Ne4 {[%clk
0:01:32.5]} 29... h5 {[%clk 0:02:10.2]} 30. Qf3 {[%clk 0:01:29.3]} 30... Rxb1
{[%clk 0:01:34.8]} 31. Rxb1 {[%clk 0:01:28.8]} 31... Qc7 {[%clk 0:01:27.3]} 32.
Nd6 {[%clk 0:01:21.7]} 32... Rf8 {[%clk 0:01:26.9]} 33. h4 {[%clk 0:01:16.4]}
33... Qc3 {[%clk 0:01:03.5]} 34. Qe4 {[%clk 0:01:09.2]} 34... Qd2 {[%clk
0:00:47.9]} 35. Qe1 {[%clk 0:00:31]} 35... Qxe1+ {[%clk 0:00:39.5]} 36. Rxe1
{[%clk 0:00:31.9]} 36... Ne7 {[%clk 0:00:27.1]} 37. Bf4 {[%clk 0:00:28.2]} 37...
Nc6 {[%clk 0:00:26.1]} 38. Bg3 {[%clk 0:00:13.8]} 38... Ra8 {[%clk 0:00:25.5]}
39. f4 {[%clk 0:00:14.1]} 39... Bf8 {[%clk 0:00:25.6]} 40. Ne4 {[%clk
0:00:13.6]} 40... Ra3 {[%clk 0:00:23.8]} 41. Bf2 {[%clk 0:00:13.9]} 41... Be7
{[%clk 0:00:16.9]} 42. Rc1 {[%clk 0:00:14.3]} 42... Ra6 {[%clk 0:00:16.9]} 43.
g3 {[%clk 0:00:14.6]} 43... Kg7 {[%clk 0:00:17]} 44. Kg2 {[%clk 0:00:15.1]}
44... Kf8 {[%clk 0:00:17]} 45. Rb1 {[%clk 0:00:13]} 45... Ra8 {[%clk 0:00:13.7]}
46. Rb7 {[%clk 0:00:13.3]} 46... Rc8 {[%clk 0:00:14]} 47. Kf3 {[%clk 0:00:10.8]}
47... Kg7 {[%clk 0:00:13]} 48. Kg2 {[%clk 0:00:10.2]} 48... Kf8 {[%clk
0:00:13.3]} 49. Bc5 {[%clk 0:00:09.8]} 49... Bxc5 {[%clk 0:00:09.9]} 50. Nxc5
{[%clk 0:00:10.7]} 50... Nxe5 {[%clk 0:00:10]} 51. Nxe6+ {[%clk 0:00:10.6]}
51... fxe6 {[%clk 0:00:10.4]} 52. fxe5 {[%clk 0:00:11.1]} 52... Rc5 {[%clk
0:00:10.9]} 53. Kf3 {[%clk 0:00:11]} 53... Rxe5 {[%clk 0:00:10.7]} 54. Kf4
{[%clk 0:00:11.9]} 54... Rf5+ {[%clk 0:00:11]} 55. Ke4 {[%clk 0:00:12.5]} 55...
Rf7 {[%clk 0:00:11]} 56. Rb6 {[%clk 0:00:12.3]} 56... Ke7 {[%clk 0:00:11.4]} 57.
Rb5 {[%clk 0:00:10.7]} 57... Rf5 {[%clk 0:00:10.1]} 58. Rb8 {[%clk 0:00:09.2]}
58... Rf1 {[%clk 0:00:09.5]} 59. Rg8 {[%clk 0:00:08.1]} 59... Kf7 {[%clk
0:00:09.7]} 60. Rb8 {[%clk 0:00:08.1]} 60... Rc1 {[%clk 0:00:09.6]} 61. Kf4
{[%clk 0:00:08.1]} 61... Rc4+ {[%clk 0:00:09.3]} 62. Ke5 {[%clk 0:00:05.4]}
62... Rc5+ {[%clk 0:00:09.7]} 63. Kf4 {[%clk 0:00:05.9]} 63... Ra5 {[%clk
0:00:10.2]} 64. Rh8 {[%clk 0:00:05.3]} 64... Ra4+ {[%clk 0:00:09.6]} 65. Ke5
{[%clk 0:00:05]} 65... Ra3 {[%clk 0:00:10.1]} 66. Rh7+ {[%clk 0:00:05.1]} 66...
Kg8 {[%clk 0:00:09.8]} 67. Rc7 {[%clk 0:00:05.1]} 67... Rxg3 {[%clk 0:00:09.5]}
68. Kxe6 {[%clk 0:00:05.5]} 68... Rf3 {[%clk 0:00:09.9]} 69. Rd7 {[%clk
0:00:05.3]} 69... Rf4 {[%clk 0:00:10.1]} 70. Rc7 {[%clk 0:00:05.1]} 70... Rxh4
{[%clk 0:00:10.1]} 71. Kf6 {[%clk 0:00:05.6]} 71... Rg4 {[%clk 0:00:10.5]} 72.
Ra7 {[%clk 0:00:05.7]} 72... h4 {[%clk 0:00:10.1]} 73. Rg7+ {[%clk 0:00:06]}
73... Kh8 {[%clk 0:00:10.5]} 74. Ra7 {[%clk 0:00:06.3]} 74... h3 {[%clk
0:00:07.7]} 75. Ra8+ {[%clk 0:00:06.7]} 75... Kh7 {[%clk 0:00:07.8]} 76. Ra7+
{[%clk 0:00:07.2]} 76... Kh6 {[%clk 0:00:07.8]} 77. Ra8 {[%clk 0:00:07.6]} 77...
Rf4+ {[%clk 0:00:08.1]} 78. Ke5 {[%clk 0:00:08.2]} 78... Rf3 {[%clk 0:00:08.1]}
79. Ke4 {[%clk 0:00:07.6]} 79... Rf7 {[%clk 0:00:06.7]} 80. Rh8+ {[%clk
0:00:06]} 80... Rh7 {[%clk 0:00:06.9]} 81. Rf8 {[%clk 0:00:06.4]} 81... h2
{[%clk 0:00:06.3]} 82. Rf1 {[%clk 0:00:07.1]} 82... Kg5 {[%clk 0:00:06.8]} 83.
Rh1 {[%clk 0:00:06.4]} 83... Kg4 {[%clk 0:00:07.4]} 0-1

[Event "Late-Titled-Tuesday-Blitz-April-23-2024"]
[Site "Chess.com"]
[Date "2024.04.23"]
[Round "9"]
[White "Durarbayli"]
[Black "LikeWater"]
[Result "1/2-1/2"]
[WhiteElo "2897"]
[BlackElo "2665"]
[TimeControl "180+1"]
[EndTime "15:49:48 PDT"]
[Termination "Game drawn - insufficient material"]

1. e4 {[%clk 0:03:00.9]} 1... e5 {[%clk 0:02:47.2]} 2. Nf3 {[%clk 0:03:00.3]}
2... d6 {[%clk 0:02:47.8]} 3. Bc4 {[%clk 0:02:58.8]} 3... Nf6 {[%clk 0:02:46.8]}
4. Ng5 {[%clk 0:02:54]} 4... d5 {[%clk 0:02:46.2]} 5. exd5 {[%clk 0:02:51.2]}
5... h6 {[%clk 0:02:46.4]} 6. Nf3 {[%clk 0:02:47.4]} 6... e4 {[%clk 0:02:39]} 7.
Ne5 {[%clk 0:02:40]} 7... Qe7 {[%clk 0:02:28.5]} 8. d4 {[%clk 0:02:26.1]} 8...
exd3 {[%clk 0:02:28]} 9. f4 {[%clk 0:01:45.5]} 9... Nbd7 {[%clk 0:02:28.4]} 10.
Qxd3 {[%clk 0:01:15.5]} 10... Nxe5 {[%clk 0:02:04.5]} 11. fxe5 {[%clk
0:01:16.4]} 11... Ng4 {[%clk 0:02:00.5]} 12. e6 {[%clk 0:01:11.6]} 12... Ne5
{[%clk 0:01:48.6]} 13. Bb5+ {[%clk 0:01:00]} 13... c6 {[%clk 0:01:45.8]} 14. Qd4
{[%clk 0:00:55.3]} 14... Qf6 {[%clk 0:01:24]} 15. exf7+ {[%clk 0:00:46]} 15...
Ke7 {[%clk 0:01:05.5]} 16. Nd2 {[%clk 0:00:30.9]} 16... cxb5 {[%clk 0:00:57.9]}
17. Rf1 {[%clk 0:00:30]} 17... Bf5 {[%clk 0:00:45]} 18. d6+ {[%clk 0:00:12.2]}
18... Kd7 {[%clk 0:00:38.4]} 19. Qd5 {[%clk 0:00:11.3]} 19... Bxd6 {[%clk
0:00:32.7]} 20. Qxb7+ {[%clk 0:00:05.6]} 20... Bc7 {[%clk 0:00:32]} 21. Qxb5+
{[%clk 0:00:05.2]} 21... Kc8 {[%clk 0:00:22.2]} 22. Ne4 {[%clk 0:00:02.5]} 22...
Qh4+ {[%clk 0:00:19.5]} 23. Ng3 {[%clk 0:00:03.2]} 23... g6 {[%clk 0:00:09.8]}
24. Qd5 {[%clk 0:00:02.4]} 24... Rb8 {[%clk 0:00:09.3]} 25. Bf4 {[%clk
0:00:02.7]} 25... Rd8 {[%clk 0:00:04]} 26. Bxe5 {[%clk 0:00:02.2]} 26... Bxe5
{[%clk 0:00:03]} 27. f8=Q {[%clk 0:00:02.8]} 27... Rxf8 {[%clk 0:00:02.7]} 28.
Qxe5 {[%clk 0:00:02.9]} 28... Rb6 {[%clk 0:00:01.4]} 29. Kd2 {[%clk 0:00:01.9]}
29... Qb4+ {[%clk 0:00:01.5]} 30. Qc3+ {[%clk 0:00:01.2]} 30... Qxc3+ {[%clk
0:00:01.8]} 31. bxc3 {[%clk 0:00:01.9]} 31... Rd8+ {[%clk 0:00:01.7]} 32. Kc1
{[%clk 0:00:02.2]} 32... Be6 {[%clk 0:00:01.6]} 33. Ne4 {[%clk 0:00:02.5]} 33...
Bc4 {[%clk 0:00:01.6]} 34. Re1 {[%clk 0:00:02.2]} 34... Re6 {[%clk 0:00:01.3]}
35. Kb2 {[%clk 0:00:02.9]} 35... Rde8 {[%clk 0:00:01.6]} 36. Red1 {[%clk
0:00:01.7]} 36... Rxe4 {[%clk 0:00:01.7]} 37. Rd6 {[%clk 0:00:02.2]} 37... Be6
{[%clk 0:00:01.8]} 38. Rad1 {[%clk 0:00:02.5]} 38... Re7 {[%clk 0:00:02.2]} 39.
Ra6 {[%clk 0:00:02.8]} 39... Bf7 {[%clk 0:00:01.7]} 40. Rf1 {[%clk 0:00:02.2]}
40... Rb7+ {[%clk 0:00:02.3]} 41. Kc1 {[%clk 0:00:02.2]} 41... Re5 {[%clk
0:00:02.9]} 42. Raf6 {[%clk 0:00:02.1]} 42... Be8 {[%clk 0:00:03.3]} 43. Rf8
{[%clk 0:00:02.3]} 43... Rbe7 {[%clk 0:00:03.8]} 44. R1f6 {[%clk 0:00:02.1]}
44... Kc7 {[%clk 0:00:03.9]} 45. Ra6 {[%clk 0:00:02]} 45... Kb7 {[%clk
0:00:04.2]} 46. Rd6 {[%clk 0:00:02.5]} 46... Bc6 {[%clk 0:00:04.4]} 47. Rxg6
{[%clk 0:00:02.1]} 47... R5e6 {[%clk 0:00:04.4]} 48. Rff6 {[%clk 0:00:01.7]}
48... Rxf6 {[%clk 0:00:04.6]} 49. Rxf6 {[%clk 0:00:02.6]} 49... h5 {[%clk
0:00:04.9]} 50. g3 {[%clk 0:00:02.9]} 50... Re2 {[%clk 0:00:04.7]} 51. h3 {[%clk
0:00:03.5]} 51... Rg2 {[%clk 0:00:04.6]} 52. g4 {[%clk 0:00:03.9]} 52... hxg4
{[%clk 0:00:05.5]} 53. hxg4 {[%clk 0:00:04.3]} 53... Rxg4 {[%clk 0:00:06.4]} 54.
Rf7+ {[%clk 0:00:03.9]} 54... Kb6 {[%clk 0:00:06.9]} 55. Rf6 {[%clk 0:00:04.8]}
55... a5 {[%clk 0:00:07.1]} 56. Kb2 {[%clk 0:00:05.3]} 56... Kc5 {[%clk
0:00:07.1]} 57. Rf5+ {[%clk 0:00:04.4]} 57... Bd5 {[%clk 0:00:07.6]} 58. Rh5
{[%clk 0:00:04.8]} 58... Rg8 {[%clk 0:00:07.9]} 59. a3 {[%clk 0:00:04.3]} 59...
Rb8+ {[%clk 0:00:08.1]} 60. Kc1 {[%clk 0:00:04.7]} 60... Rg8 {[%clk 0:00:08.4]}
61. Kb2 {[%clk 0:00:05]} 61... Rg2 {[%clk 0:00:08.7]} 62. Re5 {[%clk 0:00:01.8]}
62... Kc4 {[%clk 0:00:08.9]} 63. Re7 {[%clk 0:00:02]} 63... Bc6 {[%clk
0:00:08.4]} 64. Rc7 {[%clk 0:00:02.4]} 64... Kd5 {[%clk 0:00:08.5]} 65. Ra7
{[%clk 0:00:02.4]} 65... Kd6 {[%clk 0:00:07.5]} 66. Rxa5 {[%clk 0:00:02.5]}
66... Be4 {[%clk 0:00:08.1]} 67. c4 {[%clk 0:00:02.9]} 67... Bxc2 {[%clk
0:00:07.4]} 68. Kc3 {[%clk 0:00:03.3]} 68... Be4 {[%clk 0:00:07.6]} 69. Rh5
{[%clk 0:00:03.9]} 69... Bc6 {[%clk 0:00:07.8]} 70. Rh6+ {[%clk 0:00:03.9]}
70... Kc7 {[%clk 0:00:08.1]} 71. Rh5 {[%clk 0:00:04.8]} 71... Kb6 {[%clk
0:00:08.5]} 72. Rh6 {[%clk 0:00:03.5]} 72... Rg3+ {[%clk 0:00:07.7]} 73. Kb4
{[%clk 0:00:03.7]} 73... Rg4 {[%clk 0:00:08.2]} 74. a4 {[%clk 0:00:04.1]} 74...
Rg1 {[%clk 0:00:08.1]} 75. a5+ {[%clk 0:00:04.6]} 75... Kc7 {[%clk 0:00:08.4]}
76. Rh7+ {[%clk 0:00:05]} 76... Bd7 {[%clk 0:00:08.8]} 77. Kc5 {[%clk
0:00:04.3]} 77... Ra1 {[%clk 0:00:09]} 78. Kb4 {[%clk 0:00:02.7]} 78... Ra4+
{[%clk 0:00:09.1]} 79. Kc3 {[%clk 0:00:03.1]} 79... Rxa5 {[%clk 0:00:10]} 80.
Kb4 {[%clk 0:00:03.8]} 80... Ra4+ {[%clk 0:00:10.2]} 81. Kb3 {[%clk 0:00:03.5]}
81... Ra1 {[%clk 0:00:11.1]} 82. c5 {[%clk 0:00:03.9]} 82... Kc6 {[%clk
0:00:11.3]} 83. Kc3 {[%clk 0:00:04.3]} 83... Be6 {[%clk 0:00:10.8]} 84. Rh6
{[%clk 0:00:03.8]} 84... Re1 {[%clk 0:00:10.9]} 85. Kd2 {[%clk 0:00:04]} 85...
Re5 {[%clk 0:00:11.1]} 86. Rh4 {[%clk 0:00:03.3]} 86... Kxc5 {[%clk 0:00:11.4]}
87. Kc3 {[%clk 0:00:03.8]} 87... Re3+ {[%clk 0:00:10.8]} 88. Kd2 {[%clk
0:00:04.3]} 88... Rg3 {[%clk 0:00:11]} 89. Rf4 {[%clk 0:00:04.2]} 89... Bd5
{[%clk 0:00:10.9]} 90. Rf8 {[%clk 0:00:04.6]} 90... Kd4 {[%clk 0:00:11.1]} 91.
Rd8 {[%clk 0:00:05.3]} 91... Rg2+ {[%clk 0:00:11.4]} 92. Kd1 {[%clk 0:00:05.9]}
92... Ke4 {[%clk 0:00:11.5]} 93. Kc1 {[%clk 0:00:06.4]} 93... Kd4 {[%clk
0:00:11.3]} 94. Kd1 {[%clk 0:00:06.2]} 94... Kc4 {[%clk 0:00:11.7]} 95. Ke1
{[%clk 0:00:06.7]} 95... Rh2 {[%clk 0:00:10.6]} 96. Rd7 {[%clk 0:00:06]} 96...
Be4 {[%clk 0:00:10.2]} 97. Rd2 {[%clk 0:00:06.4]} 97... Rh1+ {[%clk 0:00:10]}
98. Ke2 {[%clk 0:00:07]} 98... Bd3+ {[%clk 0:00:09.7]} 99. Ke3 {[%clk
0:00:06.9]} 99... Rh3+ {[%clk 0:00:09.6]} 100. Kf4 {[%clk 0:00:07.2]} 100... Kd4
{[%clk 0:00:09.6]} 101. Ra2 {[%clk 0:00:07.4]} 101... Rh8 {[%clk 0:00:09.9]}
102. Ra4+ {[%clk 0:00:07]} 102... Bc4 {[%clk 0:00:10.1]} 103. Kg4 {[%clk
0:00:07.2]} 103... Rg8+ {[%clk 0:00:10]} 104. Kh4 {[%clk 0:00:07.4]} 104... Kd5
{[%clk 0:00:09.4]} 105. Ra5+ {[%clk 0:00:05.5]} 105... Ke6 {[%clk 0:00:09.8]}
106. Ra4 {[%clk 0:00:05.6]} 106... Bd5 {[%clk 0:00:10.2]} 107. Rg4 {[%clk
0:00:05.8]} 107... Rf8 {[%clk 0:00:09.3]} 108. Kg3 {[%clk 0:00:06.2]} 108... Ke5
{[%clk 0:00:09.9]} 109. Rb4 {[%clk 0:00:04.3]} 109... Be4 {[%clk 0:00:09.1]}
110. Rb5+ {[%clk 0:00:04]} 110... Kd4 {[%clk 0:00:09.6]} 111. Rb4+ {[%clk
0:00:03.1]} 111... Ke3 {[%clk 0:00:10]} 112. Rb3+ {[%clk 0:00:03.7]} 112... Bd3
{[%clk 0:00:10.4]} 113. Ra3 {[%clk 0:00:04.3]} 113... Rg8+ {[%clk 0:00:10.8]}
114. Kh3 {[%clk 0:00:04.8]} 114... Ke4 {[%clk 0:00:09.4]} 115. Kh2 {[%clk
0:00:05.3]} 115... Be2 {[%clk 0:00:07.2]} 116. Rg3 {[%clk 0:00:06.2]} 116...
Rh8+ {[%clk 0:00:06.7]} 117. Kg2 {[%clk 0:00:06.8]} 117... Kf4 {[%clk
0:00:06.6]} 118. Ra3 {[%clk 0:00:05.6]} 118... Bc4 {[%clk 0:00:03.6]} 119. Ra4
{[%clk 0:00:05.6]} 119... Rc8 {[%clk 0:00:04.2]} 120. Kf2 {[%clk 0:00:06]}
120... Ke4 {[%clk 0:00:04.6]} 121. Kg3 {[%clk 0:00:05.8]} 121... Kd4 {[%clk
0:00:04.9]} 122. Kf4 {[%clk 0:00:05.9]} 122... Rf8+ {[%clk 0:00:05.3]} 123. Kg4
{[%clk 0:00:06.3]} 123... Kd5 {[%clk 0:00:06.2]} 124. Kg3 {[%clk 0:00:05.5]}
124... Bd3 {[%clk 0:00:06.1]} 125. Rf4 {[%clk 0:00:06.4]} 125... Rg8+ {[%clk
0:00:06.1]} 126. Kf3 {[%clk 0:00:07]} 126... Be4+ {[%clk 0:00:06.2]} 127. Rxe4
{[%clk 0:00:06.8]} 127... Rf8+ {[%clk 0:00:06.2]} 128. Rf4 {[%clk 0:00:07.4]}
128... Rxf4+ {[%clk 0:00:06.2]} 129. Kxf4 {[%clk 0:00:08.3]} 1/2-1/2

[Event "Late-Titled-Tuesday-Blitz-April-23-2024"]
[Site "Chess.com"]
[Date "2024.04.23"]
[Round "10"]
[White "Stanbad1"]
[Black "ZachHKL"]
[Result "1-0"]
[WhiteElo "2610"]
[BlackElo "2326"]
[TimeControl "180+1"]
[EndTime "15:53:23 PDT"]
[Termination "Stanbad1 won by resignation"]

1. d4 {[%clk 0:02:59.1]} 1... d5 {[%clk 0:02:58.3]} 2. Nc3 {[%clk 0:02:59.3]}
2... Nf6 {[%clk 0:02:57.6]} 3. Bf4 {[%clk 0:02:59.7]} 3... e6 {[%clk 0:02:57]}
4. Nb5 {[%clk 0:02:58.8]} 4... Na6 {[%clk 0:02:57.1]} 5. e3 {[%clk 0:02:58.8]}
5... Be7 {[%clk 0:02:56.1]} 6. Nf3 {[%clk 0:02:58]} 6... c6 {[%clk 0:02:55.4]}
7. Nc3 {[%clk 0:02:56.9]} 7... O-O {[%clk 0:02:55.9]} 8. h3 {[%clk 0:02:56.3]}
8... Bd7 {[%clk 0:02:52.8]} 9. Ne5 {[%clk 0:02:55.8]} 9... Be8 {[%clk
0:02:52.9]} 10. a3 {[%clk 0:02:55.7]} 10... c5 {[%clk 0:02:52.5]} 11. Be2 {[%clk
0:02:53.4]} 11... Qb6 {[%clk 0:02:51.6]} 12. Rb1 {[%clk 0:02:52.2]} 12... Rc8
{[%clk 0:02:48.2]} 13. O-O {[%clk 0:02:51.4]} 13... Nd7 {[%clk 0:02:41.9]} 14.
Nf3 {[%clk 0:02:42.8]} 14... h6 {[%clk 0:02:29]} 15. Bh2 {[%clk 0:02:37.6]}
15... Nf6 {[%clk 0:02:22.2]} 16. Re1 {[%clk 0:02:34.9]} 16... Bc6 {[%clk
0:02:14.6]} 17. Ne5 {[%clk 0:02:33.3]} 17... Rfe8 {[%clk 0:01:59.6]} 18. b4
{[%clk 0:02:14.7]} 18... cxb4 {[%clk 0:01:57.1]} 19. axb4 {[%clk 0:02:14.2]}
19... Bxb4 {[%clk 0:01:55.3]} 20. Na2 {[%clk 0:02:13.3]} 20... Qa5 {[%clk
0:01:50.7]} 21. Nxb4 {[%clk 0:02:13.1]} 21... Nxb4 {[%clk 0:01:49.4]} 22. Qd2
{[%clk 0:02:13.4]} 1-0

[Event "Late-Titled-Tuesday-Blitz-April-23-2024"]
[Site "Chess.com"]
[Date "2024.04.23"]
[Round "10"]
[White "Flaccidmoves"]
[Black "zano2023"]
[Result "1-0"]
[WhiteElo "2386"]
[BlackElo "2159"]
[TimeControl "180+1"]
[EndTime "15:54:30 PDT"]
[Termination "Flaccidmoves won by resignation"]

1. c4 {[%clk 0:02:59.6]} 1... d6 {[%clk 0:02:56.6]} 2. g3 {[%clk 0:02:57.1]}
2... Nf6 {[%clk 0:02:53.9]} 3. Bg2 {[%clk 0:02:57.2]} 3... e5 {[%clk 0:02:54.4]}
4. Nf3 {[%clk 0:02:55.8]} 4... Be7 {[%clk 0:02:55]} 5. d4 {[%clk 0:02:55.8]}
5... Nbd7 {[%clk 0:02:54.8]} 6. O-O {[%clk 0:02:55]} 6... c6 {[%clk 0:02:54.9]}
7. Nc3 {[%clk 0:02:54.5]} 7... O-O {[%clk 0:02:54.8]} 8. b4 {[%clk 0:02:48.1]}
8... Re8 {[%clk 0:02:50.8]} 9. Bb2 {[%clk 0:02:44.4]} 9... Qc7 {[%clk
0:02:46.4]} 10. c5 {[%clk 0:02:32.5]} 10... exd4 {[%clk 0:02:43.6]} 11. cxd6
{[%clk 0:02:30]} 11... Bxd6 {[%clk 0:02:43.2]} 12. Qxd4 {[%clk 0:02:28.6]} 12...
Ne5 {[%clk 0:02:25.8]} 13. Ng5 {[%clk 0:01:46.5]} 13... h6 {[%clk 0:02:15.6]}
14. Nge4 {[%clk 0:01:45.8]} 14... Nxe4 {[%clk 0:02:14.2]} 15. Nxe4 {[%clk
0:01:46.7]} 15... Bf8 {[%clk 0:02:05.5]} 16. f4 {[%clk 0:01:36.3]} 16... Nd7
{[%clk 0:01:48.9]} 17. Rfd1 {[%clk 0:01:29.4]} 17... Nb6 {[%clk 0:01:48.7]} 18.
Nf6+ {[%clk 0:01:27.1]} 18... gxf6 {[%clk 0:01:27.1]} 19. Qxf6 {[%clk 0:01:28]}
1-0

[Event "Late-Titled-Tuesday-Blitz-April-23-2024"]
[Site "Chess.com"]
[Date "2024.04.23"]
[Round "10"]
[White "frequentblunders"]
[Black "SmirnovTimofey2000"]
[Result "1-0"]
[WhiteElo "2210"]
[BlackElo "1962"]
[TimeControl "180+1"]
[EndTime "15:55:30 PDT"]
[Termination "frequentblunders won by resignation"]

1. d3 {[%clk 0:02:59.7]} 1... e5 {[%clk 0:02:56.5]} 2. f4 {[%clk 0:03:00.6]}
2... d6 {[%clk 0:02:46.6]} 3. Nf3 {[%clk 0:02:59.6]} 3... Nc6 {[%clk 0:02:43.8]}
4. e4 {[%clk 0:02:59.1]} 4... Bg4 {[%clk 0:02:33.7]} 5. Nc3 {[%clk 0:02:59.5]}
5... Nd4 {[%clk 0:02:28.9]} 6. Be2 {[%clk 0:02:58.5]} 6... Bxf3 {[%clk
0:02:24.2]} 7. Bxf3 {[%clk 0:02:58.7]} 7... Nxf3+ {[%clk 0:02:20.5]} 8. Qxf3
{[%clk 0:02:59.6]} 8... g6 {[%clk 0:02:01.1]} 9. O-O {[%clk 0:03:00.5]} 9... Bg7
{[%clk 0:01:59.5]} 10. fxe5 {[%clk 0:02:55.9]} 10... Qe7 {[%clk 0:01:50.4]} 11.
exd6 {[%clk 0:02:54.5]} 11... cxd6 {[%clk 0:01:51.3]} 12. Nd5 {[%clk 0:02:54.5]}
12... Qd7 {[%clk 0:01:45.5]} 13. Bg5 {[%clk 0:02:49.2]} 13... h6 {[%clk
0:01:40.7]} 14. Nf6+ {[%clk 0:02:47.3]} 14... Nxf6 {[%clk 0:01:36.6]} 15. Bxf6
{[%clk 0:02:48]} 15... O-O {[%clk 0:01:34.5]} 16. Bxg7 {[%clk 0:02:45.3]} 16...
Kxg7 {[%clk 0:01:34.5]} 17. Qf6+ {[%clk 0:02:46.2]} 17... Kg8 {[%clk 0:01:34.1]}
18. Rf4 {[%clk 0:02:40.4]} 18... Rac8 {[%clk 0:01:31.2]} 19. c4 {[%clk
0:02:40.1]} 19... Qe6 {[%clk 0:01:25.4]} 20. Raf1 {[%clk 0:02:33.2]} 20... Qxf6
{[%clk 0:01:24.4]} 21. Rxf6 {[%clk 0:02:34.1]} 21... Rcd8 {[%clk 0:01:22.6]} 22.
Kf2 {[%clk 0:02:33.5]} 22... Kg7 {[%clk 0:01:21.5]} 23. Ke3 {[%clk 0:02:33.3]}
23... Rd7 {[%clk 0:01:16.9]} 24. Kd4 {[%clk 0:02:32.7]} 24... Re8 {[%clk
0:01:16.4]} 25. h4 {[%clk 0:02:30.9]} 25... b6 {[%clk 0:01:14.6]} 26. g4 {[%clk
0:02:30.3]} 26... a5 {[%clk 0:01:13.9]} 27. h5 {[%clk 0:02:29.9]} 27... gxh5
{[%clk 0:01:06.8]} 28. gxh5 {[%clk 0:02:30.8]} 28... Re5 {[%clk 0:01:05.7]} 29.
R1f5 {[%clk 0:02:28.2]} 29... Rxf5 {[%clk 0:00:49]} 30. Rxf5 {[%clk 0:02:29.1]}
30... Re7 {[%clk 0:00:48.7]} 31. Kd5 {[%clk 0:02:27.7]} 31... Re6 {[%clk
0:00:37.8]} 32. d4 {[%clk 0:02:24.9]} 32... Kf8 {[%clk 0:00:24.3]} 33. a4 {[%clk
0:02:18.2]} 33... Ke7 {[%clk 0:00:23.9]} 34. e5 {[%clk 0:02:15.5]} 34... dxe5
{[%clk 0:00:22.4]} 35. Rxe5 {[%clk 0:02:14.6]} 35... f6 {[%clk 0:00:20.4]} 36.
Rxe6+ {[%clk 0:02:14]} 1-0

[Event "Late-Titled-Tuesday-Blitz-April-23-2024"]
[Site "Chess.com"]
[Date "2024.04.23"]
[Round "10"]
[White "ozates"]
[Black "NikitaShnadrygin"]
[Result "1-0"]
[WhiteElo "2573"]
[BlackElo "2697"]
[TimeControl "180+1"]
[EndTime "15:55:33 PDT"]
[Termination "ozates won by resignation"]

1. e4 {[%clk 0:02:59.4]} 1... c5 {[%clk 0:02:59.3]} 2. Nf3 {[%clk 0:02:58.3]}
2... e6 {[%clk 0:02:59.5]} 3. d4 {[%clk 0:02:56.6]} 3... cxd4 {[%clk 0:03:00.4]}
4. Nxd4 {[%clk 0:02:57.4]} 4... Nf6 {[%clk 0:03:01]} 5. Nc3 {[%clk 0:02:57.6]}
5... Nc6 {[%clk 0:03:00.7]} 6. Be2 {[%clk 0:02:57.9]} 6... d5 {[%clk 0:02:59]}
7. exd5 {[%clk 0:02:55.5]} 7... exd5 {[%clk 0:02:56.8]} 8. O-O {[%clk
0:02:55.2]} 8... Be7 {[%clk 0:02:57.4]} 9. Bg5 {[%clk 0:02:50.6]} 9... O-O
{[%clk 0:02:56]} 10. Bf3 {[%clk 0:02:50.9]} 10... Ne5 {[%clk 0:02:54.7]} 11.
Bxf6 {[%clk 0:02:45.3]} 11... Bxf6 {[%clk 0:02:54.9]} 12. Nxd5 {[%clk
0:02:43.8]} 12... Nxf3+ {[%clk 0:02:54.8]} 13. Nxf3 {[%clk 0:02:44.7]} 13...
Bxb2 {[%clk 0:02:55]} 14. Rb1 {[%clk 0:02:44.6]} 14... Ba3 {[%clk 0:02:55]} 15.
Qd3 {[%clk 0:02:42.9]} 15... Bd6 {[%clk 0:02:49.9]} 16. Rfd1 {[%clk 0:02:42.3]}
16... Be6 {[%clk 0:02:45.7]} 17. Rxb7 {[%clk 0:02:40.2]} 17... Qa5 {[%clk
0:02:40.7]} 18. Nf6+ {[%clk 0:02:29.8]} 18... gxf6 {[%clk 0:02:38.1]} 19. Qxd6
{[%clk 0:02:29.4]} 19... Rad8 {[%clk 0:02:38.4]} 20. Qg3+ {[%clk 0:02:28.7]}
20... Kh8 {[%clk 0:02:38.9]} 21. Rxd8 {[%clk 0:02:13.9]} 21... Rxd8 {[%clk
0:02:39.8]} 22. h4 {[%clk 0:02:14.2]} 22... Qxa2 {[%clk 0:02:38.5]} 23. Qf4
{[%clk 0:02:08.9]} 23... Qa1+ {[%clk 0:02:34.1]} 24. Kh2 {[%clk 0:02:07.5]}
24... a5 {[%clk 0:02:14.8]} 25. Ra7 {[%clk 0:01:47.1]} 25... Qc3 {[%clk
0:02:01.3]} 26. h5 {[%clk 0:01:38.4]} 26... Rg8 {[%clk 0:01:49]} 27. Rc7 {[%clk
0:01:37.7]} 27... Qb2 {[%clk 0:01:43.1]} 28. c3 {[%clk 0:01:36]} 28... Qb8
{[%clk 0:01:03.4]} 29. Qxf6+ {[%clk 0:01:20.7]} 29... Rg7 {[%clk 0:01:00.8]} 30.
h6 {[%clk 0:01:21.2]} 30... Qxc7+ {[%clk 0:01:01.7]} 31. Ne5 {[%clk 0:01:13.3]}
1-0